Workbook

Sheet Page 1
B15: Report Date: | E15: =EOMONTH('[12]Waterfall - Trustees'!$E$5,1) -> 2025-03-31
B16: Reporting Period: | E16: =TEXT('[12]Waterfall - Trustees'!$E$4,"DD MMMM YYYY")&" to "&TEXT('[12]Waterfall - Trustees'!$E$5,"DD MMMM YYYY") -> 01 February 2025 to 28 February 2025
B17: Trustee Calculation Date: | E17: ='[12]Waterfall - Trustees'!$E$5+1 -> 2025-03-01
B20: Investors, potential investors (and certain other market professionals acting on their behalf) can register at https://www.euroabs.com/IH.aspx?s=222 to download further information in relation to the Fosse Master Issuer Residential Mortgage-Backed Note Issuance Programme (the “Programme”) in accordance with the Bank of England's Market Notice dated 30 November 2010 in respect of its eligibility requirements for residential mortgage backed securities. In accordance with, as applicable, (i) Article 7 of Chapter 2 of the Securitisation Part of the rulebook of published policy of the Prudential Regulation Authority of the Bank of England (the “PRA Securitisation Rules”) and SECN 6 of the securitisation sourcebook of the handbook of rules and guidance adopted by the Financial Conduct Authority (the “SECN”), and (ii) Article 7(1) of Regulation (EU) 2017/2402 (the “EU Securitisation Regulation”), Santander UK plc (“Santander UK”), in its capacity as seller under the Programme, will also procure the publication of: (a) a quarterly investor report in respect of the relevant collection period; and (b) certain loan-level information in relation to the portfolio in respect of the relevant collection period prior to pricing of any series of notes upon request, on https://www.euroabs.com/IH.aspx?d=12305 and https://www.secrep.co.uk, or, in each case, any other website which may be notified to the investors from time to time, in each case simultaneously each quarter (to the extent required under Article 7 of Chapter 2 of the PRA Securitisation Rules, SECN 6, and/or, as applicable, Article 7(1) of the EU Securitisation Regulation). | V20: =IF(OR(MONTH(F15)=1,MONTH(F15)=4,MONTH(F15)=7,MONTH(F15)=10),"true","false") -> true
B22: DISCLAIMER: The following document has been prepared by Santander UK. The document is provided to you for information purposes only. The document is not intended as an offer or solicitation for the purchase or sale of any financial instrument. Whilst every effort has been taken to ensure that the document is accurate, current, complete, fit for its intended purpose and compliant with the relevant United Kingdom legislation and regulations as at the date of issue, Santander UK does not warrant that this document is accurate, current, complete, fit for its intended purpose and compliant with the relevant United Kingdom legislation and regulations as errors might occur due to circumstances which are beyond our control. In particular, Santander UK does not warrant that any market data or prices are complete or accurate. Any opinions or estimates expressed in the documents may be subject to change without notice and Santander UK is under no obligation to update the opinions or estimates and neither Santander UK nor any of its affiliates accepts any liability whatsoever for any direct or consequential loss arising from any use of this document or its contents. Please remember that past performance is not necessarily a guide for future performance. The value of instruments and the income from them can go down as well as up.
B27: Contacts:
B29: All queries should be directed to:
B32: Medium Term Funding Team | D32: MTF@santander.co.uk

Sheet Page 2
B2: MAIN PARTIES TO THE STRUCTURE, RATINGS AND TRIGGERS (IF APPLICABLE)
D4: Fitch/Moody's/S&P Long Term Rating | E4: Fitch/Moody's/S&P Short Term Rating | F4: Applicable Trigger (loss of) | G4: Consequence
B5: Issuer | C5: Fosse Master Issuer plc
B6: Funding | C6: Fosse Funding (No. 1) Limited
B7: Mortgages Trustee | C7: Fosse Trustee Limited
B8: Seller | C8: Santander UK | D8: A+ / A1/ A | E8: F1 / P-1 / A-1 | F8: A-(Fitch) / A3 (Moody's) | G8: Funding 1 required to establish a Liquidity Reserve Fund.
F9: BBB- / Baa3 / A-2 | G9: Notice to be given to Borrowers of transfer of equitable and beneficial interest in the Loans, but no need to perfect legal title to the Loans.
F10: BBB- (Fitch) / BBB- (S&P) | G10: Completion of legal assignment of Loans to Mortgages Trustee and perfection of transfer of Related Security.
F11: F2 / P-2 / A-3 | G11: Seller unable to sell in New Loans, Funding 1 unable to make Initial Contributions, Further Contributions or Refinancing Contributions.
F12: BBB- / Baa3 / BBB- | G12: Adjustment to Minimum Seller Share calculation.
F13: A3 (Moody's) | G13: Independent audit of a random selection of Loans in the Portfolio to verify that the representations and warranties relating to them were complied with as of their Assignment Date.
F14: F2 or BBB+ / P-2 / A-2 or BBB | G14: Transfer of Seller collection accounts to another bank with these minimum ratings or payments to be made directly to the Mortgages Trustee GIC Account.
B15: Servicer | C15: Santander UK | D15: A+ / A1/ A | E15: F1 / P-1 / A-1 | F15: F2 / P-2 / A-2 | G15: The title deeds and the customer files relating to the Loans in the Portfolio to be segregated from the title deeds and customer files of other properties and mortgages of the Seller which do not form part of the Portfolio.
B16: Cash Manager | C16: Santander UK | D16: A+ / A1/ A | E16: F1 / P-1 / A-1
B17: Start-up Loan Provider | C17: Santander UK | D17: A+ / A1/ A | E17: F1 / P-1 / A-1
B18: Mortgages Trustee Account Bank | C18: Santander UK | D18: A+ / A1/ A | E18: F1 / P-1 / A-1 | F18: A or F1 / Baa3(cr) (or Baa3 if no (cr) rating) / BBB+ or A-2 P-1(cr) (or P-1 if no (cr) rating / A or A-1 (or A+ if no ST rating) (S&P) | G18: Remedial action required within 60 calendar days (in respect of a downgrade by Moody's or Fitch) or 90 calendar days (in respect of a downgrade by S&P) – obtaining a guarantee from a financial institution with the minimum required ratings and a confirmation from the Ratings Agencies that the outstanding Rated Notes will not be downgraded. If this action is not taken, the Mortgages Trustee GIC Account needs to be closed and amounts transferred to a financial institution with the minimum required ratings, unless the Rating Agencies confirm that failure to close the account and transfer amounts will not have an impact on the rating of the Rated Notes. A stand-by arrangement in respect of the Mortgages Trustee GIC Account needs to be put in place within 60 calendar days (in respect of a downgrade by Moody's) or 90 calendar days (in respect of a downgrade by S&P) with a financial institution with the minimum required ratings. If a stand-by arrangement is not implemented, the Mortgages Trustee GIC Account needs to be closed and amounts transferred to a financial institution with the minimum required ratings, unless the Rating Agencies confirm that failure to close the account and transfer amounts will not have an impact on the rating of the Rated Notes.
B19: Account Bank A in respect of the Funding 1 Transaction Account | F19: A or F1 / P-1 / A or A-1 (or A+ if no ST rating) | G19: Remedial action required unless within 60 calendar days (in respect of a downgrade by Moody's or Fitch) or 90 calendar days (in respect of a downgrade by S&P)– either (a) procuring a guarantee of the obligations of Account Bank A in respect of the Funding 1 Transaction Account from a financial institution having the minimum required ratings; or (b) taking such other action required by the Rating Agencies to ensure that the ratings assigned to the Rated Notes are not adversely affected. If remedial action is not taken, the Funding 1 Transaction Account needs to be closed and amounts transferred to a financing institution having the minimum required ratings
B20: Account Bank B in respect of the Funding 1 GIC Account | C20: Santander UK | D20: A+ / A1/ A | E20: F1 / P-1 / A-1 | F20: A or F1 / P-1 / A or A-1 (or A+ if no ST rating) or A3(cr) (or A3 if no (cr) rating) or A- | G20: Remedial action required within 60 calendar days (in respect of a downgrade by Moody's or Fitch) or 90 calendar days (in respect of a downgrade by S&P) – either (a) procuring a guarantee of the obligations of Account Bank B in respect of the Funding 1 GIC Account from a financial institution having the minimum required ratings; or (b) taking such other action required by the Rating Agencies to ensure that the ratings assigned to the Rated Notes are not adversely affected. If remedial action is not taken, the Funding 1 GIC Account needs to be closed and amounts transferred to a financing institution having the minimum required ratings. If certain conditions are met pursuant to the Panel Bank Guidelines (see Schedule 4 to the Cash Management Agreement) a limited amount of cash may be kept with Santander UK as an Eligible Bank when it is rated below A or F1 / P-1 / A or A-, but no lower than F2 and BBB+ / P-2 / A-2 and BBB+.
B21: Issuer Account Bank | C21: Santander UK | D21: A+ / A1/ A | E21: F1 / P-1 / A-1 | F21: A or F1 / P-1 / A or A-1 (or A+ if no ST rating) | G21: Remedial action required within 60 calendar days (in respect of a downgrade by Moody's or Fitch) or 90 calendar days (in respect of a downgrade by S&P) – obtaining a guarantee from a financial institution with the minimum required ratings and a confirmation from the Ratings Agencies that the outstanding Rated Notes will not be downgraded. If this action is not taken, the Issuer GIC Account needs to be closed and amounts standing to the credit of the Issuer GIC Account transferred to a financial institution with the minimum required ratings, unless the Rating Agencies confirm that failure to close the account and transfer amounts will not have an impact on the rating of the Rated Notes.
B22: Funding 1 Swap Provider | C22: Santander UK | D22: A+ / A1/ A | E22: F1 / P-1 / A-1 | F22: A or F1 / A2 or P-1 (or A1 if no ST rating) / A or A-1 (or A+ if not ST rating) | G22: Remedial action required - posting collateral and/or possibility of obtaining guarantee or transfer to eligible transferee.
F23: BBB+ or F2 (Fitch) | G23: Further collateral required and possibility of obtaining guarantee or transfer to eligible transferee.
F24: BBB- or F3 / A3 or P-2 (or A3 if no ST rating) Baa1(cr) (or Baa1 if no (cr) rating) / BBB+ or A- | G24: Further remedial action required including posting collateral and the possibility of obtaining a guarantee or replacement.
B25: Issuer Swap Provider | C25: Santander UK | D25: A+ / A1/ A | E25: F1 / P-1 / A-1 | F25: A or F1 / A2 or P-1 (or A1 if no ST rating) / A or A-1 (or A+ if no ST rating) | G25: Remedial action required - posting collateral and/or possibility of obtaining guarantee or transfer to eligible transferee.
F26: BBB+ or F2 (Fitch) | G26: Further collateral required and possibility of obtaining guarantee or transfer to eligible transferee.
F27: BBB- or F3 / A3 or P-2 (or A3 if no ST rating) / BBB+ | G27: Further remedial action required including posting collateral and obtaining a guarantee or replacement.
B28: Paying Agent and related roles | C28: Citibank N.A. | D28: A+ / A1 / A+ | E28: F1 / P-1 / A-1
B29: Intertrust Management Limited | C29: Structured Finance Management Limited
B30: Note Trustee and Security Trustee | C30: Bank of New York Mellon
B31: The table above is a brief overview only. For a more detailed summary, please consult the "Trigger Tables" section in the base prospectus available at Fosse Master Trust | Santander UK. Investors are also advised to consult the underlying Transaction Documents, also available at Fosse Master Trust | Santander UK, to understand the precise legal terms and conditions associated with the roles listed above and the rating triggers summarised above.

Sheet Page 3
B2: COLLATERAL REPORT
B4: Mortgage Loan Profile | J4: Trust Assets
B6: Original number of Mortgage Loans in Pool | F6: 42395 | J6: ="Current value of Mortgage Loans in Pool at"&" "&TEXT(EOMONTH('Page 1'!E15,-1)+1,"dd mmmm yyyy") -> Current value of Mortgage Loans in Pool at 01 March 2025 | N6: =ROUND('[12]Trustee Assets'!$E$14,2) -> 2304338598
B7: Original current value of Mortgage Loans in Pool | F7: 3399995370 | J7: ="Last months Closing Trust Assets at"&" "&TEXT(EOMONTH('Page 1'!E15,-2)+1,"dd mmmm yyyy") -> Last months Closing Trust Assets at 01 February 2025 | N7: =INDEX('[12]Trustee Assets'!$14:$14,MATCH(EOMONTH('Page 1'!E15,-2),'[12]Trustee Assets'!$6:$6,0)) -> 2340993611
B8: ="Current number of Mortgage Loans in Pool at"&" "&TEXT(EOMONTH('Page 1'!E15,-1)+1,"dd mmmm yyyy") -> Current number of Mortgage Loans in Pool at 01 March 2025 | F8: =D39 -> 13218 | J8: ="Mortgage collections - Interest on"&" "&TEXT(EOMONTH('Page 1'!E15,-1)+1,"dd mmmm yyyy") -> Mortgage collections - Interest on 01 March 2025 | N8: ='[12]Waterfall - Trustees'!$E$238 -> 5546888.77
B9: ="Current £ value of Mortgage Loans in Pool at"&" "&TEXT(EOMONTH('Page 1'!E15,-1)+1,"dd mmmm yyyy") -> Current £ value of Mortgage Loans in Pool at 01 March 2025 | F9: =E39 -> 2304338598 | J9: ="Mortgage collections - Principal (Scheduled) on"&" "&TEXT(EOMONTH('Page 1'!E15,-1)+1,"dd mmmm yyyy") -> Mortgage collections - Principal (Scheduled) on 01 March 2025 | N9: ='[12]Waterfall - Trustees'!$E$513 -> 7331750.76
B10: ="Weighted Average Yield"&" "&TEXT(EOMONTH('Page 1'!E15,-1)+8,"dd mmmm yyyy") -> Weighted Average Yield 08 March 2025 | F10: ='[12]Trustee Assets'!$E$2335 -> 0.027211515 | J10: ="Mortgage collections - Principal (Unscheduled) on"&" "&TEXT(EOMONTH('Page 1'!E15,-1)+1,"dd mmmm yyyy") -> Mortgage collections - Principal (Unscheduled) on 01 March 2025 | N10: ='Page 8'!C22+'Page 8'!C25-'Page 3'!N9 -> 29352728.44
J11: ="Principal Ledger as calculated on"&" "&TEXT('Page 1'!E17,"dd mmmm yyyy") -> Principal Ledger as calculated on 01 March 2025 | N11: =INDEX('[12]Waterfall - Funding'!$175:$175,MATCH(EOMONTH('Page 1'!E15,0),'[12]Waterfall - Funding'!$15:$15,0)) -> 0
J12: ="Funding Share as calculated on "&TEXT('Page 1'!E17,"DD MMMM YYYY") -> Funding Share as calculated on 01 March 2025 | N12: ='[12]Waterfall - Trustees'!$E$26 -> 1393679000
J13: ="Funding Share % as calculated on "&TEXT('Page 1'!E17,"DD MMMM YYYY") -> Funding Share % as calculated on 01 March 2025 | N13: ='[12]Waterfall - Trustees'!$E$17 -> 0.5953365
J14: ="Seller Share as calculated on "&TEXT('Page 1'!E17,"DD MMMM YYYY") -> Seller Share as calculated on 01 March 2025 | N14: ='[12]Waterfall - Trustees'!$E$51 -> 947314610.6
J15: ="Seller Share % as calculated on "&TEXT('Page 1'!E17,"DD MMMM YYYY") -> Seller Share % as calculated on 01 March 2025 | N15: ='[12]Waterfall - Trustees'!$E$19 -> 0.4046635
J16: ="Minimum Seller Share (Amount) on "&TEXT('Page 1'!E17,"DD MMMM YYYY") -> Minimum Seller Share (Amount) on 01 March 2025
J17: X Please refer to the notes on page 10 | N17: ='[12]Waterfall - Trustees'!$E$168 -> 11073329.82
J18: Y Please refer to the notes on page 10 | N18: ='[12]Waterfall - Trustees'!$E$174 -> 0
J19: Z Please refer to the notes on page 10 | N19: ='[12]Waterfall - Trustees'!$E$181 -> 0
J20: Minimum Seller Share (Amount) | N20: ='[12]Waterfall - Trustees'!$E$163 -> 117049680.5
J21: Minimum Seller Share (% of Total) | N21: ='[12]Waterfall - Trustees'!$E$164 -> 0.05
B25: Arrears Analysis of Non Repossessed Mortgage Loans | D25: Number of loans | E25: Current Balance £ | F25: Arrears £ | G25: By Number % | H25: By Current Balance %
B26: <1 month in arrears | D26: ='[12]Trustee Assets'!E1604 -> 13199 | E26: ='[12]Trustee Assets'!E1644 -> 2300775616 | F26: 0 | G26: =(D26/$D$39)*100 -> 99.85625662 | H26: =(E26/$E$39)*100 -> 99.84537939
B27: ≥1 – <2 months in arrears | D27: ='[12]Trustee Assets'!E1605 -> 19 | E27: ='[12]Trustee Assets'!E1645 -> 3562982.29 | F27: ='[12]Trustee Assets'!E2246 -> 7526.77 | G27: 0.1437433802 | H27: =(E27/$E$39)*100 -> 0.1546206053
B28: ≥2 – <3 months in arrears | D28: ='[12]Trustee Assets'!E1606 -> 0 | E28: ='[12]Trustee Assets'!E1646 -> 0 | F28: ='[12]Trustee Assets'!E2247 -> 0 | G28: 0 | H28: 0
B29: ≥3 – <4 months in arrears | D29: ='[12]Trustee Assets'!E1607 -> 0 | E29: ='[12]Trustee Assets'!E1647 -> 0 | F29: ='[12]Trustee Assets'!E2248 -> 0 | G29: 0 | H29: 0
B30: ≥4 – <5 months in arrears | D30: ='[12]Trustee Assets'!E1608 -> 0 | E30: ='[12]Trustee Assets'!E1648 -> 0 | F30: ='[12]Trustee Assets'!E2249 -> 0 | G30: 0 | H30: 0
B31: ≥5 – <6 months in arrears | D31: ='[12]Trustee Assets'!E1609 -> 0 | E31: ='[12]Trustee Assets'!E1649 -> 0 | F31: ='[12]Trustee Assets'!E2250 -> 0 | G31: 0 | H31: 0
B32: ≥6 – <7 months in arrears | D32: ='[12]Trustee Assets'!E1610 -> 0 | E32: ='[12]Trustee Assets'!E1650 -> 0 | F32: ='[12]Trustee Assets'!E2251 -> 0 | G32: 0 | H32: 0
B33: ≥7 – <8 months in arrears | D33: ='[12]Trustee Assets'!E1611 -> 0 | E33: ='[12]Trustee Assets'!E1651 -> 0 | F33: ='[12]Trustee Assets'!E2252 -> 0 | G33: 0 | H33: 0
B34: ≥8 – <9 months in arrears | D34: ='[12]Trustee Assets'!E1612 -> 0 | E34: ='[12]Trustee Assets'!E1652 -> 0 | F34: ='[12]Trustee Assets'!E2253 -> 0 | G34: 0 | H34: 0
B35: ≥9 – <10 months in arrears | D35: ='[12]Trustee Assets'!E1613 -> 0 | E35: ='[12]Trustee Assets'!E1653 -> 0 | F35: ='[12]Trustee Assets'!E2254 -> 0 | G35: 0 | H35: 0
B36: ≥10 – <11 months in arrears | D36: ='[12]Trustee Assets'!E1614 -> 0 | E36: ='[12]Trustee Assets'!E1654 -> 0 | F36: ='[12]Trustee Assets'!E2255 -> 0 | G36: 0 | H36: 0
B37: ≥11 – <12 months in arrears | D37: ='[12]Trustee Assets'!E1615 -> 0 | E37: ='[12]Trustee Assets'!E1655 -> 0 | F37: ='[12]Trustee Assets'!E2256 -> 0 | G37: 0 | H37: 0
B38: More than 12 months in arrears | D38: ='[12]Trustee Assets'!E1616 -> 0 | E38: ='[12]Trustee Assets'!E1656 -> 0 | F38: ='[12]Trustee Assets'!E2257 -> 0 | G38: 0 | H38: 0
B39: Total | D39: =SUM(D26:D38) -> 13218 | E39: =SUM(E26:E38) -> 2304338598 | F39: =SUM(F26:F38) -> 7526.77 | G39: =SUM(G26:G38) -> 100 | H39: =SUM(H26:H38) -> 100
B42: Arrears Capitalised | D42: Number | E42: Current Balance | F42: Capitalised Amount
E43: £ | F43: £
B45: Capitalisation cases (in month) | D45: ='[12]Trustee Assets'!$E$2146 -> 0 | E45: ='[12]Trustee Assets'!$E$2147 -> 0 | F45: ='[12]Trustee Assets'!$E$2148 -> 0
B46: Capitalisation cases (Total) * | D46: ='[12]Trustee Assets'!$E$2151 -> 3 | E46: ='[12]Trustee Assets'!$E$2152 -> 287717.64 | F46: ='[12]Trustee Assets'!$E$2153 -> 11127.57
B48: *Includes properties in possession cases, cases no longer in arrears but excludes any Loans repurchased from the Portfolio or Loans that have been redeemed since January 2008
B50: Losses on Properties in Possession | D50: Number | E50: Loss Amount
E51: £
B53: Total loss on sale brought forward | D53: ='[12]Trustee Assets'!$E$2226 -> 527 | E53: ='[12]Trustee Assets'!$E$2227 -> 21660275.25
B54: Losses recorded this period | D54: ='[12]Trustee Assets'!$E$2230 -> 0 | E54: ='[12]Trustee Assets'!$E$2231 -> 0
B55: Total loss on sale carried forward | D55: ='[12]Trustee Assets'!$E$2234 -> 527 | E55: ='[12]Trustee Assets'!$E$2235 -> 21660275.25
B56: Recoveries* | D56: ='[12]Trustee Assets'!$E$2237 -> 0 | E56: ='[12]Trustee Assets'!$E$2238 -> 0
B58: *This figure represents all live cases and would therefore exclude cases that have been closed due to bankruptcy.
B60: Properties in Possession | D60: Number | E60: Current Balance
E61: £
B63: Total properties in possession since inception | D63: ='[12]Trustee Assets'!$E$2159 -> 662 | E63: ='[12]Trustee Assets'!$E$2160 -> 75053229
B65: Repossessed (in month) | D65: ='[12]Trustee Assets'!$E$2163 -> 0 | E65: ='[12]Trustee Assets'!$E$2164 -> 0
B66: Sold (in month) | D66: ='[12]Trustee Assets'!$E$2167 -> 0 | E66: ='[12]Trustee Assets'!$E$2168 -> 0
B67: Current number in possession | D67: ='[12]Trustee Assets'!$E$2171 -> 0 | E67: ='[12]Trustee Assets'!$E$2172 -> 0
B69: Total properties sold since inception | D69: ='[12]Trustee Assets'!$E$2175 -> 658 | E69: ='[12]Trustee Assets'!$E$2176 -> 74290697.92

Sheet Page 4
B2: Product Breakdown | D2: Number | E2: % | F2: £ | G2: % | I2: ="Substitution, redemptions and repurchases during period "&TEXT(EOMONTH('Page 1'!E15,-2)+1,"dd mmmm yyyy")&"- "&TEXT(EOMONTH('Page 1'!E15,-1)+1,"dd mmmm yyyy") -> Substitution, redemptions and repurchases during period 01 February 2025- 01 March 2025 | J2: Number of loans | K2: Current balance
B3: (By Balance) | D3: of loans | E3: by number | F3: Current Balance | G3: by balance | J3: this period | K3: this period
B4: Discounted SVR Loans | D4: ='[12]Trustee Assets'!E2104 -> 0 | E4: =(D4/$D$8)*100 -> 0 | F4: ='[12]Trustee Assets'!E2124 -> 0 | G4: =(F4/$F$8)*100 -> 0 | K4: £
B5: Fixed Rate Loans | D5: ='[12]Trustee Assets'!E2105 -> 12514 | E5: =(D5/$D$8)*100 -> 94.67392949 | F5: ='[12]Trustee Assets'!E2125 -> 2225820143 | G5: =(F5/$F$8)*100 -> 96.5925817 | I5: Substitution & Top up | J5: ='[12]Trustee Assets'!$E$2268 -> 0 | K5: ='[12]Trustee Assets'!$E$2269 -> 0
B6: Bank of England Base Rate Tracker Loans | D6: ='[12]Trustee Assets'!E2106 -> 565 | E6: =(D6/$D$8)*100 -> 4.274474202 | F6: ='[12]Trustee Assets'!E2126 -> 72080325.57 | G6: =(F6/$F$8)*100 -> 3.128026655 | I6: Redeemed this period | J6: ='[12]Trustee Assets'!$E$2241 -> 75 | K6: =+'Page 3'!N10-'Page 4'!K7 -> 13408222.68
B7: Standard Variable Loans | D7: ='[12]Trustee Assets'!E2107 -> 139 | E7: =(D7/$D$8)*100 -> 1.051596308 | F7: ='[12]Trustee Assets'!E2127 -> 6438129.5 | G7: =(F7/$F$8)*100 -> 0.2793916443 | I7: Repurchases this period (including arrears)* | J7: ='[12]Trustee Assets'!$E$2216 -> 97 | K7: ='[12]Trustee Assets'!$E$2217 -> 15944505.76
B8: Total | D8: =SUM(D4:D7) -> 13218 | E8: =SUM(E4:E7) -> 100 | F8: =SUM(F4:F7) -> 2304338598 | G8: =SUM(G4:G7) -> 100 | I8: Arrears repurchased this period* | J8: ='[12]Trustee Assets'!$E$2191 -> 2 | K8: ='[12]Trustee Assets'!$E$2192 -> 471554.73
I9: Cumulative arrears repurchased* | J9: ='[12]Trustee Assets'!$E$2221 -> 2582 | K9: ='[12]Trustee Assets'!$E$2222 -> 246481024.4
I10: * “Arrears” for this purpose means, in respect of a Loan, on any date that two or more Monthly Payments have become due and remain unpaid by the relevant Borrower, and this reporting line relates to repurchases under clause 8.11 of the Mortgage Sale Agreement.
B11: Payment Type | D11: Number | E11: % | F11: £ | G11: %
B12: (By Balance) | D12: of loans | E12: by number | F12: Current Balance | G12: by balance
B13: Interest Only | D13: ='[12]Trustee Assets'!E726 -> 1433 | E13: =(D13/D15)*100 -> 10.84127705 | F13: ='[12]Trustee Assets'!E756 -> 305469523.2 | G13: =(F13/$F$15)*100 -> 13.25627768 | I13: ="PPR/CPR Analysis "&TEXT(EOMONTH('Page 1'!E17,-2)+1,"dd mmmm yyyy")&"- "&TEXT(EOMONTH('Page 1'!E17,-1)+1,"dd mmmm yyyy") -> PPR/CPR Analysis 01 February 2025- 01 March 2025 | J13: 1 Month | K13: 1 Month Annualised | L13: 3 Month Average | M13: 3 Month Annualised | N13: 12 Month Average
B14: Repayment | D14: ='[12]Trustee Assets'!E727 -> 11785 | E14: =(D14/D15)*100 -> 89.15872295 | F14: ='[12]Trustee Assets'!E757 -> 1998869075 | G14: =(F14/$F$15)*100 -> 86.74372232 | J14: % | K14: % | L14: % | M14: % | N14: %
B15: Total | D15: =SUM(D13:D14) -> 13218 | E15: =SUM(E13:E14) -> 100 | F15: =SUM(F13:F14) -> 2304338598 | G15: =SUM(G13:G14) -> 100 | I15: Total (including unscheduled repayments and repurchases from the Mortgages Trust)
I16: Current month | J16: ='[12]Waterfall - Trustees'!$E$517 -> 0.01567047387 | K16: ='[12]Waterfall - Trustees'!$E$518 -> 0.1726559465 | L16: ='[12]Waterfall - Trustees'!$E$523 -> 0.01754811239 | M16: ='[12]Waterfall - Trustees'!$E$524 -> 0.1980938272 | N16: ='[12]Waterfall - Trustees'!$E$521 -> 0.280820207
I17: Previous month | J17: ='[12]Waterfall - Trustees'!$E$539 -> 0.01756163359 | K17: ='[12]Waterfall - Trustees'!$E$540 -> 0.1915302561 | L17: ='[12]Waterfall - Trustees'!$E$545 -> 0.01762775376 | M17: ='[12]Waterfall - Trustees'!$E$546 -> 0.1985966876 | N17: ='[12]Waterfall - Trustees'!$E$543 -> 0.2990858937
B18: Use Of Proceeds | D18: Number | E18: % | F18: £ | G18: % | I18: Unscheduled repayments and repurchases from the Mortgages Trust only
B19: (By Balance) | D19: of loans | E19: by number | F19: Current Balance | G19: by balance | I19: Current month | J19: ='[12]Waterfall - Trustees'!$E$519 -> 0.01257796982 | K19: ='[12]Waterfall - Trustees'!$E$520 -> 0.1409197212 | L19: ='[12]Waterfall - Trustees'!$E$525 -> 0.01547454956 | M19: ='[12]Waterfall - Trustees'!$E$526 -> 0.1665742522 | N19: ='[12]Waterfall - Trustees'!$E$522 -> 0.2555734298
B20: Remortgage | D20: =SUM('[12]Trustee Assets'!$E$533:$E$544) -> 5754 | E20: =(D20/$D$23)*100 -> 43.53154789 | F20: =SUM('[12]Trustee Assets'!$E$571:$E$582) -> 950064511.6 | G20: =(F20/$F$23)*100 -> 41.22937975 | I20: Previous month | J20: ='[12]Waterfall - Trustees'!$E$541 -> 0.01445336014 | K20: ='[12]Waterfall - Trustees'!$E$542 -> 0.160296083 | L20: ='[12]Waterfall - Trustees'!$E$547 -> 0.01556029316 | M20: ='[12]Waterfall - Trustees'!$E$548 -> 0.1671580942 | N20: ='[12]Waterfall - Trustees'!$E$544 -> 0.2745608364
B21: House Purchase | D21: ='[12]Trustee Assets'!$E$532 -> 7464 | E21: =(D21/$D$23)*100 -> 56.46845211 | F21: ='[12]Trustee Assets'!$E$570 -> 1354274087 | G21: =(F21/$F$23)*100 -> 58.77062025 | I21: *As of February 2014 the definitions and calculations for PPR/CPR have been amended to align the reporting between all Santander UK secured funding structures.
B22: Unknown | D22: =+'[12]Trustee Assets'!$E$545 -> 0 | E22: =(D22/$D$23)*100 -> 0 | F22: ='[12]Trustee Assets'!$E$583 -> 0 | G22: =(F22/$F$23)*100 -> 0
B23: Total | D23: =SUM(D20:D22) -> 13218 | E23: =SUM(E20:E22) -> 100 | F23: =SUM(F20:F22) -> 2304338598 | G23: =SUM(G20:G22) -> 100 | I23: Standard Variable Rate - Applicable to underwritten Santander UK mortgages
I25: Existing Borrowers SVR | J25: =+'[12]Check-Data'!$D$13 -> 0.0675
B26: Analysis of Mortgage loan size at reporting date | D26: Number | E26: % | F26: £ | G26: % | I26: Effective date of change | J26: =+'[12]Check-Data'!$D$14 -> 2025-02-01
B27: £ | D27: of loans | E27: by number | F27: Current Balance | G27: by balance | I27: Previous existing Borrowers SVR | J27: =+'[12]Check-Data'!$D$15 -> 0.07
B28: 0 to <=50,000 | D28: ='[12]Trustee Assets'!$E$611+'[12]Trustee Assets'!$E$612+'[12]Trustee Assets'!$E$613+'[12]Trustee Assets'!$E$614 -> 1419 | E28: =(D28/$D$44)*100 -> 10.73536087 | F28: ='[12]Trustee Assets'!$E$667+'[12]Trustee Assets'!$E$668+'[12]Trustee Assets'!$E$669+'[12]Trustee Assets'!$E$670 -> 40364760.89 | G28: =(F28/$F$44)*100 -> 1.751685317 | I28: Effective date of change | J28: =+'[12]Check-Data'!$D$16 -> 2024-11-01
B29: >50,000 to <=100,000 | D29: ='[12]Trustee Assets'!$E$615+'[12]Trustee Assets'!$E$616 -> 2549 | E29: =(D29/$D$44)*100 -> 19.28430928 | F29: ='[12]Trustee Assets'!$E$671+'[12]Trustee Assets'!$E$672 -> 194886197.2 | G29: =(F29/$F$44)*100 -> 8.457359407
B30: >100,000 to <=150,000 | D30: ='[12]Trustee Assets'!E617 -> 2675 | E30: 20.23755485 | F30: ='[12]Trustee Assets'!E673 -> 333361138.4 | G30: 14.46667337
B31: >150,000 to <=200,000 | D31: ='[12]Trustee Assets'!E618 -> 2163 | E31: 16.36404902 | F31: ='[12]Trustee Assets'!E674 -> 375616086.2 | G31: 16.300386
B32: >200,000 to <=250,000 | D32: ='[12]Trustee Assets'!E619 -> 1595 | E32: 12.0668785 | F32: ='[12]Trustee Assets'!E675 -> 355825075.6 | G32: 15.44152738
B33: >250,000 to <=300,000 | D33: ='[12]Trustee Assets'!E620 -> 1029 | E33: 7.784838856 | F33: ='[12]Trustee Assets'!E676 -> 280138866.8 | G33: 12.15701837
B34: >300,000 to <=350,000 | D34: ='[12]Trustee Assets'!E621 -> 675 | E34: 5.106672719 | F34: ='[12]Trustee Assets'!E677 -> 218245302.5 | G34: 9.471060487
B35: >350,000 to <=400,000 | D35: ='[12]Trustee Assets'!E622 -> 395 | E35: 2.988349221 | F35: ='[12]Trustee Assets'!E678 -> 146985617.1 | G35: 6.378646663
B36: >400,000 to <=450,000 | D36: ='[12]Trustee Assets'!E623 -> 255 | E36: 1.929187472 | F36: ='[12]Trustee Assets'!E679 -> 107577060.2 | G36: 4.668457157
B37: >450,000 to <=500,000 | D37: ='[12]Trustee Assets'!E624 -> 152 | E37: 1.149947042 | F37: ='[12]Trustee Assets'!E680 -> 71965850.21 | G37: 3.123058836
B38: >500,000 to <=550,000 | D38: ='[12]Trustee Assets'!E625 -> 145 | E38: 1.096988954 | F38: ='[12]Trustee Assets'!E681 -> 75812088.64 | G38: 3.289971738
B39: >550,000 to <=600,000 | D39: ='[12]Trustee Assets'!E626 -> 64 | E39: 0.4841882282 | F39: ='[12]Trustee Assets'!E682 -> 36615382.22 | G39: 1.58897578
B40: >600,000 to <=650,000 | D40: ='[12]Trustee Assets'!E627 -> 43 | E40: 0.3253139658 | F40: ='[12]Trustee Assets'!E683 -> 26687959.21 | G40: 1.158161358
B41: >650,000 to <=700,000 | D41: ='[12]Trustee Assets'!E628 -> 41 | E41: 0.3101830837 | F41: ='[12]Trustee Assets'!E684 -> 27444795.46 | G41: 1.191005327
B42: >700,000 to <=750,000 | D42: ='[12]Trustee Assets'!E629 -> 18 | E42: 0.1361779392 | F42: ='[12]Trustee Assets'!E685 -> 12812417.78 | G42: 0.5560128094
B43: > 750,000 | D43: ='[12]Trustee Assets'!E630 -> 0 | E43: 0 | F43: ='[12]Trustee Assets'!E686 -> 0 | G43: 0
B44: Total | D44: =SUM(D28:D43) -> 13218 | E44: =SUM(E28:E43) -> 100 | F44: =SUM(F28:F43) -> 2304338598 | G44: =SUM(G28:G43) -> 100
B45: ="As at the report date, the maximum loan size was "&TEXT('[12]Trustee Assets'!$E$24,"£#,##0.00")&", and the average loan size was "&TEXT(F44/D44,"£#,##0.00") -> As at the report date, the maximum loan size was £731,499.00, and the average loan size was £174,333.38
B48: Geographical Analysis By Region | D48: Number | E48: % | F48: Current balance | G48: %
D49: of loans | E49: by number | F49: £ | G49: by balance
B50: East Anglia | D50: ='[12]Trustee Assets'!$E$1066 -> 1497 | E50: =(D50/$D$61)*100 -> 11.32546527 | F50: ='[12]Trustee Assets'!$E$1102 -> 296066014.4 | G50: =(F50/$F$61)*100 -> 12.84819925
B51: East Midlands | D51: ='[12]Trustee Assets'!$E$1064 -> 966 | E51: 7.308216069 | F51: ='[12]Trustee Assets'!$E$1100 -> 131883652.7 | G51: 5.723275772
B52: London | D52: ='[12]Trustee Assets'!$E$1067 -> 1788 | E52: 13.52700862 | F52: ='[12]Trustee Assets'!$E$1103 -> 469286712.7 | G52: 20.36535399
B53: North | D53: ='[12]Trustee Assets'!$E$1061 -> 382 | E53: 2.889998487 | F53: ='[12]Trustee Assets'!$E$1097 -> 43915272.89 | G53: 1.905764757
B54: North West | D54: ='[12]Trustee Assets'!$E$1062 -> 1240 | E54: 9.381146921 | F54: ='[12]Trustee Assets'!$E$1098 -> 172160731.1 | G54: 7.471155984
B55: Scotland | D55: ='[12]Trustee Assets'!$E$1071 -> 1346 | E55: 10.18308367 | F55: ='[12]Trustee Assets'!$E$1107 -> 152192714 | G55: 6.604615922
B56: South East | D56: ='[12]Trustee Assets'!$E$1068 -> 2465 | E56: 18.64881223 | F56: ='[12]Trustee Assets'!$E$1104 -> 518553773.7 | G56: 22.50336709
B57: South West | D57: ='[12]Trustee Assets'!$E$1069 -> 1297 | E57: 9.812377062 | F57: ='[12]Trustee Assets'!$E$1105 -> 216816160.4 | G57: 9.409040864
B58: Yorkshire and Humberside | D58: ='[12]Trustee Assets'!$E$1063 -> 874 | E58: 6.612195491 | F58: ='[12]Trustee Assets'!$E$1099 -> 113271590.5 | G58: 4.915579271
B59: Wales | D59: ='[12]Trustee Assets'!$E$1070 -> 471 | E59: 3.563322742 | F59: ='[12]Trustee Assets'!$E$1106 -> 57921329.84 | G59: 2.513577209
B60: West Midlands | D60: ='[12]Trustee Assets'!$E$1065 -> 892 | E60: 6.74837343 | F60: ='[12]Trustee Assets'!$E$1101 -> 132270646.3 | G60: 5.740069899
B61: Total | D61: =SUM(D50:D60) -> 13218 | E61: =SUM(E50:E60) -> 100 | F61: =SUM(F50:F60) -> 2304338598 | G61: =SUM(G50:G60) -> 100

Sheet Page 5
B2: Remaining Term | C2: Number | D2: % | E2: £ | F2: % | H2: Indexed Current Loan to Value | I2: Number | J2: % | K2: £ | L2: %
C3: of loans | D3: by number | E3: Current Balance | F3: by balance | H3: Using current capital balance and HPI indexed latest valuation | I3: of loans | J3: by number | K3: Current Balance | L3: by balance
B4: 0 to <5 | C4: ='[12]Trustee Assets'!$E$2032+'[12]Trustee Assets'!$E$2033 -> 818 | D4: =(C4/$C$15)*100 -> 6.188530791 | E4: ='[12]Trustee Assets'!$E$2066+'[12]Trustee Assets'!$E$2067 -> 67726711.71 | F4: =(E4/$E$15)*100 -> 2.939095485 | H4: >0% =<25% | I4: ='[12]Trustee Assets'!E1784 -> 2472 | J4: =(I4/$I$13)*100 -> 18.70177031 | K4: ='[12]Trustee Assets'!$E$1830 -> 186394602.4 | L4: =(K4/$K$13)*100 -> 8.088854761
B5: >= 5 to < 10 | C5: ='[12]Trustee Assets'!$E$2034 -> 1685 | D5: =(C5/$C$15)*100 -> 12.74776819 | E5: ='[12]Trustee Assets'!E2068 -> 175245151.2 | F5: 7.605008711 | H5: >25% =<50% | I5: ='[12]Trustee Assets'!E1785+'[12]Trustee Assets'!$E$1786 -> 5194 | J5: =(I5/$I$13)*100 -> 39.29490089 | K5: ='[12]Trustee Assets'!$E$1831+'[12]Trustee Assets'!$E$1832 -> 905118304.9 | L5: 39.27887618
B6: >= 10 to < 15 | C6: ='[12]Trustee Assets'!E2035 -> 2203 | D6: 16.66666667 | E6: ='[12]Trustee Assets'!E2069 -> 314908831.9 | F6: 13.66590969 | H6: >50% =<75% | I6: ='[12]Trustee Assets'!$E$1787+'[12]Trustee Assets'!$E$1788+'[12]Trustee Assets'!$E$1789+'[12]Trustee Assets'!$E$1790+'[12]Trustee Assets'!$E$1791 -> 4772 | J6: 36.10228476 | K6: ='[12]Trustee Assets'!$E$1833+'[12]Trustee Assets'!$E$1834+'[12]Trustee Assets'!$E$1835+'[12]Trustee Assets'!$E$1836+'[12]Trustee Assets'!$E$1837 -> 1036302045 | L6: 44.97177828
B7: >=15 to < 20 | C7: ='[12]Trustee Assets'!E2036 -> 2994 | D7: 22.65093055 | E7: ='[12]Trustee Assets'!E2070 -> 540177678.5 | F7: 23.44176671 | H7: >75% =<80% | I7: ='[12]Trustee Assets'!E1792 -> 342 | J7: 2.587380844 | K7: ='[12]Trustee Assets'!E1838 -> 76956554.17 | L7: 3.339637422
B8: >= 20 to < 25 | C8: ='[12]Trustee Assets'!E2037 -> 3681 | D8: 27.84838856 | E8: ='[12]Trustee Assets'!E2071 -> 783127683.9 | F8: 33.98492237 | H8: >80% =<85% | I8: ='[12]Trustee Assets'!E1793 -> 284 | J8: 2.148585263 | K8: ='[12]Trustee Assets'!E1839 -> 65457023.05 | L8: 2.840599168
B9: >= 25 to < 30 | C9: ='[12]Trustee Assets'!E2038 -> 1837 | D9: 13.89771524 | E9: ='[12]Trustee Assets'!E2072 -> 423152541.3 | F9: 18.36329703 | H9: >85% =<90% | I9: ='[12]Trustee Assets'!E1794 -> 136 | J9: 1.028899985 | K9: ='[12]Trustee Assets'!E1840 -> 31016000.52 | L9: 1.345982771
B10: >= 30 to < 35 | C10: ='[12]Trustee Assets'!E2039 -> 0 | D10: 0 | E10: ='[12]Trustee Assets'!E2073 -> 0 | F10: 0 | H10: >90% =<95% | I10: ='[12]Trustee Assets'!E1795 -> 17 | J10: 0.1286124981 | K10: ='[12]Trustee Assets'!E1841 -> 2927048.37 | L10: 0.1270233625
B11: >= 35 to < 40 | C11: ='[12]Trustee Assets'!E2040 -> 0 | D11: 0 | E11: ='[12]Trustee Assets'!E2074 -> 0 | F11: 0 | H11: >95% | I11: ='[12]Trustee Assets'!$E$1796+'[12]Trustee Assets'!$E$1797+'[12]Trustee Assets'!$E$1798+'[12]Trustee Assets'!$E$1799+'[12]Trustee Assets'!$E$1800 -> 1 | J11: 0.007565441065 | K11: ='[12]Trustee Assets'!$E$1842+'[12]Trustee Assets'!$E$1843+'[12]Trustee Assets'!$E$1844+'[12]Trustee Assets'!$E$1845+'[12]Trustee Assets'!$E$1846 -> 167019.68 | L11: 0.007248052874
B12: >= 40 to < 45 | C12: ='[12]Trustee Assets'!E2041 -> 0 | D12: 0 | E12: ='[12]Trustee Assets'!E2075 -> 0 | F12: 0 | H12: Unknown | I12: ='[12]Trustee Assets'!$E$1801 -> 0 | J12: 0 | K12: ='[12]Trustee Assets'!$E$1847 -> 0 | L12: 0
B13: >= 45 | C13: ='[12]Trustee Assets'!E2042 -> 0 | D13: 0 | E13: ='[12]Trustee Assets'!E2076 -> 0 | F13: 0 | H13: Total | I13: =SUM(I4:I12) -> 13218 | J13: =SUM(J4:J12) -> 100 | K13: =SUM(K4:K12) -> 2304338598 | L13: =+SUM(L4:L12) -> 100
B14: Unknown | C14: ='[12]Trustee Assets'!E2043 -> 0 | D14: 0 | E14: ='[12]Trustee Assets'!E2077 -> 0 | F14: 0 | H14: ="As at the report date, the maximum indexed LTV was "&'[12]Trustee Assets'!$E$40*100&" %, and the weighted average indexed LTV was "&ROUND('[12]Trustee Assets'!$E$41*100,2)&"%" -> As at the report date, the maximum indexed LTV was 95.96 %, and the weighted average indexed LTV was 50.41%
B15: Total | C15: =SUM(C4:C14) -> 13218 | D15: =SUM(D4:D14) -> 100 | E15: =SUM(E4:E14) -> 2304338598 | F15: =SUM(F4:F14) -> 100
B16: ="As at the report date, the maximum remaining term for a loan was "& '[12]Trustee Assets'!$E$29&" months, and the weighted average remaining term was "& ROUND('[12]Trustee Assets'!$E$30,0)&" months." -> As at the report date, the maximum remaining term for a loan was 332 months, and the weighted average remaining term was 229 months.
H17: Loan to Value at Last Valuation | I17: Number | J17: % | K17: £ | L17: %
H18: Using current capital balance and unindexed latest valuation | I18: of loans | J18: by number | K18: Current Balance | L18: by balance
B19: Seasoning | C19: Number | D19: % | E19: £ | F19: % | H19: >0% =<25% | I19: ='[12]Trustee Assets'!$E$1404 -> 1948 | J19: =(I19/$I$28)*100 -> 14.7374792 | K19: ='[12]Trustee Assets'!$E$1450 -> 135356815.8 | L19: =(K19/$K$28)*100 -> 5.873998549
C20: of loans | D20: by number | E20: Current Balance | F20: by balance | H20: >25% =<50% | I20: ='[12]Trustee Assets'!$E$1405+'[12]Trustee Assets'!$E$1406 -> 4250 | J20: =(I20/$I$28)*100 -> 32.15312453 | K20: ='[12]Trustee Assets'!$E$1451+'[12]Trustee Assets'!$E$1452 -> 708100903.6 | L20: =(K20/$K$28)*100 -> 30.72903019
B21: 0 to <6 | C21: ='[12]Trustee Assets'!E1881 -> 1 | D21: =(C21/$C$52)*100 -> 0.007565441065 | E21: ='[12]Trustee Assets'!E1955 -> 110407.26 | F21: =(E21/$E$52)*100 -> 0.004791277639 | H21: >50% =<75% | I21: ='[12]Trustee Assets'!$E$1407+'[12]Trustee Assets'!$E$1408+'[12]Trustee Assets'!$E$1409+'[12]Trustee Assets'!$E$1410+'[12]Trustee Assets'!$E$1411 -> 5599 | J21: 42.35890452 | K21: ='[12]Trustee Assets'!$E$1453+'[12]Trustee Assets'!$E$1454+'[12]Trustee Assets'!$E$1455+'[12]Trustee Assets'!$E$1456+'[12]Trustee Assets'!$E$1457 -> 1170859411 | L21: 50.81108359
B22: >= 6 to < 12 | C22: ='[12]Trustee Assets'!E1882 -> 4 | D22: =(C22/$C$52)*100 -> 0.03026176426 | E22: ='[12]Trustee Assets'!E1956 -> 327679.39 | F22: =(E22/$E$52)*100 -> 0.01422010594 | H22: >75% =<80% | I22: ='[12]Trustee Assets'!E1412 -> 753 | J22: 5.696777122 | K22: ='[12]Trustee Assets'!E1458 -> 155140930 | L22: 6.732557883
B23: >= 12 to < 18 | C23: ='[12]Trustee Assets'!E1883 -> 719 | D23: 5.439552126 | E23: ='[12]Trustee Assets'!E1957 -> 137454615.5 | F23: 5.965035502 | H23: >80% =<85% | I23: ='[12]Trustee Assets'!E1413 -> 472 | J23: 3.570888183 | K23: ='[12]Trustee Assets'!E1459 -> 96575199.39 | L23: 4.191016002
B24: >= 18 to < 24 | C24: ='[12]Trustee Assets'!E1884 -> 651 | D24: 4.925102133 | E24: ='[12]Trustee Assets'!E1958 -> 119136549.2 | F24: 5.170097369 | H24: >85% =<90% | I24: ='[12]Trustee Assets'!E1414 -> 161 | J24: 1.218036011 | K24: ='[12]Trustee Assets'!E1460 -> 32226637.45 | L24: 1.398520056
B25: >= 24 to < 30 | C25: ='[12]Trustee Assets'!E1885 -> 1088 | D25: 8.231199879 | E25: ='[12]Trustee Assets'!E1959 -> 233111644.6 | F25: 10.11620622 | H25: >90% =<95% | I25: ='[12]Trustee Assets'!E1415 -> 35 | J25: 0.2647904373 | K25: ='[12]Trustee Assets'!E1461 -> 6078700.81 | L25: 0.263793733
B26: >= 30 to < 36 | C26: ='[12]Trustee Assets'!E1886 -> 2017 | D26: 15.25949463 | E26: ='[12]Trustee Assets'!E1960 -> 395557269.4 | F26: 17.16576156 | H26: >95% | I26: ='[12]Trustee Assets'!$E$1416+'[12]Trustee Assets'!$E$1417+'[12]Trustee Assets'!$E$1418+'[12]Trustee Assets'!$E$1419+'[12]Trustee Assets'!$E$1420 -> 0 | J26: 0 | K26: ='[12]Trustee Assets'!$E$1462+'[12]Trustee Assets'!$E$1463+'[12]Trustee Assets'!$E$1464+'[12]Trustee Assets'!$E$1465+'[12]Trustee Assets'!$E$1466 -> 0 | L26: 0
B27: >= 36 to < 42 | C27: ='[12]Trustee Assets'!E1887 -> 1859 | D27: 14.06415494 | E27: ='[12]Trustee Assets'!E1961 -> 381392290.8 | F27: 16.55105248 | I27: ='[12]Trustee Assets'!$E$1417 -> 0 | J27: 0 | K27: ='[12]Trustee Assets'!$E$1467 -> 0 | L27: 0
B28: >= 42 to < 48 | C28: ='[12]Trustee Assets'!E1888 -> 1209 | D28: 9.146618248 | E28: ='[12]Trustee Assets'!E1962 -> 231612442.2 | F28: 10.05114623 | H28: Total | I28: =SUM(I19:I27) -> 13218 | J28: =SUM(J19:J27) -> 100 | K28: =SUM(K19:K27) -> 2304338598 | L28: =SUM(L19:L27) -> 100
B29: >=48 to < 54 | C29: ='[12]Trustee Assets'!E1889 -> 2166 | D29: 16.38674535 | E29: ='[12]Trustee Assets'!E1963 -> 380645419.9 | F29: 16.51864097 | H29: ="As at the report date, the maximum unindexed LTV was "&'[12]Trustee Assets'!$E$37*100&" %, and the weighted average unindexed LTV was "&ROUND('[12]Trustee Assets'!$E$38*100,2)&"%" -> As at the report date, the maximum unindexed LTV was 93.15 %, and the weighted average unindexed LTV was 54.84%
B30: >=54 to < 60 | C30: ='[12]Trustee Assets'!E1890 -> 151 | D30: 1.142381601 | E30: ='[12]Trustee Assets'!E1964 -> 22206146.18 | F30: 0.9636668064
B31: >= 60 to < 66 | C31: ='[12]Trustee Assets'!E1891 -> 270 | D31: 2.042669088 | E31: ='[12]Trustee Assets'!E1965 -> 38228758.25 | F31: 1.658990492
B32: >= 66 to < 72 | C32: ='[12]Trustee Assets'!E1892 -> 323 | D32: 2.443637464 | E32: ='[12]Trustee Assets'!E1966 -> 51154287.5 | F32: 2.219911932 | H32: Original Loan to Value at Last Valuation | I32: Number | J32: % | K32: £ | L32: %
B33: >= 72 to < 78 | C33: ='[12]Trustee Assets'!E1893 -> 395 | D33: 2.988349221 | E33: ='[12]Trustee Assets'!E1967 -> 56528072.13 | F33: 2.45311484 | H33: Using original balance and valuation amount | I33: of loans | J33: by number | K33: Current Balance | L33: by balance
B34: >= 78 to < 84 | C34: ='[12]Trustee Assets'!E1894 -> 329 | D34: 2.48903011 | E34: ='[12]Trustee Assets'!E1968 -> 44244160.48 | F34: 1.920037294 | H34: >0% =<25% | I34: ='[12]Trustee Assets'!$E$1254 -> 891 | J34: =(I34/$I$43)*100 -> 6.740807989 | K34: ='[12]Trustee Assets'!$E$1300 -> 73610948.64 | L34: =(K34/$K$43)*100 -> 3.194450186
B35: >= 84 to < 90 | C35: ='[12]Trustee Assets'!E1895 -> 408 | D35: 3.086699955 | E35: ='[12]Trustee Assets'!E1969 -> 47667518.24 | F35: 2.068598698 | H35: >25% =<50% | I35: ='[12]Trustee Assets'!$E$1255+'[12]Trustee Assets'!$E$1256 -> 3010 | J35: =(I35/$I$43)*100 -> 22.77197761 | K35: ='[12]Trustee Assets'!$E$1301+'[12]Trustee Assets'!$E$1302 -> 467532286.1 | L35: =(K35/$K$43)*100 -> 20.28921819
B36: >= 90 to < 96 | C36: ='[12]Trustee Assets'!E1896 -> 405 | D36: 3.064003631 | E36: ='[12]Trustee Assets'!E1970 -> 55585795.8 | F36: 2.41222344 | H36: >50% =<75% | I36: ='[12]Trustee Assets'!$E$1257+'[12]Trustee Assets'!$E$1258+'[12]Trustee Assets'!$E$1259+'[12]Trustee Assets'!$E$1260+'[12]Trustee Assets'!$E$1261 -> 5566 | J36: 42.10924497 | K36: ='[12]Trustee Assets'!$E$1303+'[12]Trustee Assets'!$E$1304+'[12]Trustee Assets'!$E$1305+'[12]Trustee Assets'!$E$1306+'[12]Trustee Assets'!$E$1307 -> 1064483678 | L36: 46.1947597
B37: >= 96 to < 102 | C37: ='[12]Trustee Assets'!E1897 -> 109 | D37: 0.8246330761 | E37: ='[12]Trustee Assets'!E1971 -> 13315080.66 | F37: 0.5778265689 | H37: >75% =<80% | I37: ='[12]Trustee Assets'!E1262 -> 1016 | J37: 7.686488122 | K37: ='[12]Trustee Assets'!$E$1308 -> 212748111.8 | L37: 9.232502202
B38: >= 102 to < 108 | C38: ='[12]Trustee Assets'!E1898 -> 69 | D38: 0.5220154335 | E38: ='[12]Trustee Assets'!E1972 -> 6994464.83 | F38: 0.3035345949 | H38: >80% =<85% | I38: ='[12]Trustee Assets'!E1263 -> 1000 | J38: 7.565441065 | K38: ='[12]Trustee Assets'!E1309 -> 180812945.1 | L38: 7.846630927
B39: >= 108 to < 114 | C39: ='[12]Trustee Assets'!E1899 -> 111 | D39: 0.8397639582 | E39: ='[12]Trustee Assets'!E1973 -> 12866706.84 | F39: 0.5583687592 | H39: >85% =<90% | I39: ='[12]Trustee Assets'!E1264 -> 1111 | J39: 8.405205023 | K39: ='[12]Trustee Assets'!E1310 -> 196892178.5 | L39: 8.544411772
B40: >= 114 to < 120 | C40: ='[12]Trustee Assets'!E1900 -> 165 | D40: 1.248297776 | E40: ='[12]Trustee Assets'!E1974 -> 18348522.79 | F40: 0.796259838 | H40: >90% =<95% | I40: ='[12]Trustee Assets'!E1265 -> 624 | J40: 4.720835225 | K40: ='[12]Trustee Assets'!E1311 -> 108258450 | L40: 4.698027018
B41: >= 120 to < 126 | C41: ='[12]Trustee Assets'!E1901 -> 127 | D41: 0.9608110153 | E41: ='[12]Trustee Assets'!E1975 -> 11188791.32 | F41: 0.4855532658 | H41: >95% | I41: ='[12]Trustee Assets'!$E$1266+'[12]Trustee Assets'!$E$1267+'[12]Trustee Assets'!$E$1268+'[12]Trustee Assets'!$E$1269+'[12]Trustee Assets'!$E$1270 -> 0 | J41: 0 | K41: ='[12]Trustee Assets'!$E$1312+'[12]Trustee Assets'!$E$1313+'[12]Trustee Assets'!$E$1314+'[12]Trustee Assets'!$E$1315+'[12]Trustee Assets'!$E$1316 -> 0 | L41: 0
B42: >= 126 to < 132 | C42: ='[12]Trustee Assets'!E1902 -> 103 | D42: 0.7792404297 | E42: ='[12]Trustee Assets'!E1976 -> 9430647.94 | F42: 0.4092561721 | H42: Unknown | I42: ='[12]Trustee Assets'!$E$1271 -> 0 | J42: 0 | K42: ='[12]Trustee Assets'!$E$1317 -> 0 | L42: 0
B43: >= 132 to < 138 | C43: ='[12]Trustee Assets'!E1903 -> 63 | D43: 0.4766227871 | E43: ='[12]Trustee Assets'!E1977 -> 4496337.98 | F43: 0.1951248824 | H43: Total | I43: =SUM(I34:I42) -> 13218 | J43: 100 | K43: =SUM(K34:K42) -> 2304338598 | L43: =SUM(L34:L42) -> 100
B44: >= 138 to < 144 | C44: ='[12]Trustee Assets'!E1904 -> 51 | D44: 0.3858374943 | E44: ='[12]Trustee Assets'!E1978 -> 4290359.81 | F44: 0.1861861713 | H44: ="As at the report date, the maximum original LTV was "&'[12]Trustee Assets'!$E$34*100&"% and the weighted average LTV at origination was "&ROUND('[12]Trustee Assets'!$E$35*100,2)&"%" -> As at the report date, the maximum original LTV was 95% and the weighted average LTV at origination was 63.65%
B45: >= 144 to < 150 | C45: ='[12]Trustee Assets'!E1905 -> 21 | D45: 0.1588742624 | E45: ='[12]Trustee Assets'!E1979 -> 1431428.26 | F45: 0.06211883362
B46: >= 150 to < 156 | C46: ='[12]Trustee Assets'!E1906 -> 12 | D46: 0.09078529278 | E46: ='[12]Trustee Assets'!E1980 -> 837626.29 | F46: 0.03634996569
B47: >= 156 to < 162 | C47: ='[12]Trustee Assets'!E1907 -> 17 | D47: 0.1286124981 | E47: ='[12]Trustee Assets'!E1981 -> 1170553.46 | F47: 0.0507978064
B48: >= 162 to < 168 | C48: ='[12]Trustee Assets'!E1908 -> 22 | D48: 0.1664397034 | E48: ='[12]Trustee Assets'!E1982 -> 2242803.71 | F48: 0.09732960736
B49: >= 168 to < 174 | C49: ='[12]Trustee Assets'!E1909 -> 20 | D49: 0.1513088213 | E49: ='[12]Trustee Assets'!E1983 -> 1515767.77 | F49: 0.06577886475
B50: >= 174 to < 180 | C50: ='[12]Trustee Assets'!E1910 -> 21 | D50: 0.1588742624 | E50: ='[12]Trustee Assets'!E1984 -> 1124228.06 | F50: 0.0487874508
B51: >= 180 | C51: ='[12]Trustee Assets'!E1911 -> 312 | D51: 2.360417612 | E51: ='[12]Trustee Assets'!E1985 -> 20122221.79 | F51: 0.8732319896
B52: Total | C52: =SUM(C21:C51) -> 13218 | D52: =SUM(D21:D51) -> 100 | E52: =SUM(E21:E51) -> 2304338598 | F52: =SUM(F21:F51) -> 100
B53: ="As at the report date, the maximum seasoning for a loan was "&'[12]Trustee Assets'!$E$26&" months, the minimum seasoning was "&'[12]Trustee Assets'!$E$25&" months and the weighted average seasoning was "&ROUND('[12]Trustee Assets'!$E$27,0)&" months." -> As at the report date, the maximum seasoning for a loan was 237 months, the minimum seasoning was 0 months and the weighted average seasoning was 46 months.

Sheet Page 6
B2: LOAN NOTE REPORT
B8: Closing Date | C8: 2019-10-15 | F8: Series 2019-1 Notes
B10: 2019-1 | C10: ISIN (Reg S) | D10: ISIN (144a) | E10: Ratings S&P/Moody's/Fitch | F10: Initial Ratings S&P/Moody's/Fitch | G10: Currency | H10: Applicable Exchange Rate | I10: Original Balance | J10: Repaid | K10: Outstanding | L10: Reference rate | M10: Margin p.a.% | N10: Current interest rate p.a.%* | O10: Accrual Period | P10: Next coupon date | Q10: Interest next coupon* | R10: Step up Date | S10: Legal Maturity | T10: Bond Type
B12: A1* | C12: XS2065728920 | D12: n/a | E12: AAA/Aaa/AAA | F12: AAA/Aaa/AAA | G12: GBP | H12: 1 | I12: 750000000 | J12: =K12-I12 -> -750000000 | K12: 0 | L12: Compunded Daily SONIA | M12: 0.0073 | N12: - | O12: - | P12: - | Q12: - | R12: ='[12]Notes - Issuer'!$E$578 -> 2024-10-18 | S12: 2054-10-18 | T12: Sched AM
B13: A2* | C13: XS2065729654 | D13: n/a | E13: AAA/Aaa/AAA | F13: AAA/Aaa/AAA | G13: GBP | H13: 1 | I13: 500000000 | J13: =K13-I13 -> 0 | K13: =INDEX('[12]Notes - Issuer'!$653:$653,MATCH('Page 1'!E15,'[12]Notes - Issuer'!$9:$9,0)) -> 500000000 | L13: Compunded Daily SONIA | M13: 0.0088 | N13: =INDEX('[12]Notes - Issuer'!$665:$665,MATCH(EOMONTH('Page 1'!E15,0),'[12]Notes - Issuer'!$9:$9,0)) -> 0 | O13: =INDEX('[12]Notes - Issuer'!$670:$670,MATCH('Page 1'!E15,'[12]Notes - Issuer'!$9:$9,0)) -> 21/01/2025 - 22/04/2025 | P13: =INDEX('[12]Notes - Issuer'!$671:$671,MATCH('Page 1'!E15,'[12]Notes - Issuer'!$9:$9,0)) -> 2025-04-22 | Q13: =IF(INDEX('[12]Notes - Issuer'!$667:$667,MATCH(EOMONTH('Page 1'!E15,0),'[12]Notes - Issuer'!$9:$9,0))=0,"*",INDEX('[12]Notes - Issuer'!$667:$667,MATCH(EOMONTH('Page 1'!E15,0),'[12]Notes - Issuer'!$9:$9,0))) -> * | R13: ='[12]Notes - Issuer'!$E$642 -> 2029-10-18 | S13: 2072-10-18 | T13: Sched AM
B14: Z* | C14: XS2065730074 | D14: N/A | E14: N/A | F14: N/A | G14: GBP | H14: 1 | I14: 215460000 | J14: =K14-I14 -> -215460000 | K14: 0 | L14: Compunded Daily SONIA | M14: 0.009 | N14: - | O14: - | P14: - | Q14: - | R14: N/A | S14: 2054-10-18 | T14: P-Through
B16: ="*Coupon rate and interest due will not be known until 5 London Business Days prior to the Interest Payment Date on "&TEXT(P13,"DD/MM/YY")&". The information will be made available in the Interest Payment Date Investor Report in "&TEXT(P13, "MMMM YYYY")&"" -> *Coupon rate and interest due will not be known until 5 London Business Days prior to the Interest Payment Date on 22/04/25. The information will be made available in the Interest Payment Date Investor Report in April 2025
B17: All outstanding 2019-1 are listed on the London Stock Exchange.
B20: Closing Date | C20: 2024-05-14 | F20: Series 2024-1 A1 Notes
B22: 2024-1 | C22: ISIN (Reg S) | D22: ISIN (144a) | E22: Ratings Moody's/Fitch | F22: Initial Ratings Moody's/Fitch | G22: Currency | H22: Applicable Exchange Rate | I22: Original Balance | J22: Repaid | K22: Outstanding | L22: Reference rate | M22: Margin p.a.% | N22: Current interest rate p.a.%* | O22: Accrual Period | P22: Next coupon date | Q22: Interest next coupon* | R22: Step up Date | S22: Legal Maturity | T22: Bond Type
B24: A1* | C24: XS2811884530 | D24: N/A | E24: Aaa/AAA | F24: Aaa/AAA | G24: GBP | H24: 1 | I24: 750000000 | J24: =K24-I24 -> 0 | K24: =INDEX('[12]Notes - Issuer'!$761:$761,MATCH('Page 1'!E15,'[12]Notes - Issuer'!$9:$9,0)) -> 750000000 | L24: Compunded Daily SONIA | M24: 0.0052 | N24: =INDEX('[12]Notes - Issuer'!$797:$797,MATCH(EOMONTH('Page 1'!E15,0),'[12]Notes - Issuer'!$9:$9,0)) -> 0 | O24: =INDEX('[12]Notes - Issuer'!$802:$802,MATCH('Page 1'!E15,'[12]Notes - Issuer'!$9:$9,0)) -> 21/01/2025 - 22/04/2025 | P24: =INDEX('[12]Notes - Issuer'!$803:$803,MATCH('Page 1'!E15,'[12]Notes - Issuer'!$9:$9,0)) -> 2025-04-22 | Q24: =IF(INDEX('[12]Notes - Issuer'!$801:$801,MATCH(EOMONTH('Page 1'!E15,0),'[12]Notes - Issuer'!$9:$9,0))=0,"*",INDEX('[12]Notes - Issuer'!$801:$801,MATCH(EOMONTH('Page 1'!E15,0),'[12]Notes - Issuer'!$9:$9,0))) -> * | R24: ='[12]Notes - Issuer'!$E$774 -> 2028-04-18 | S24: 2072-10-18 | T24: Sched AM
B26: ="*Coupon rate and interest due will not be known until 5 London Business Days prior to the Interest Payment Date on "&TEXT(P24,"DD/MM/YY")&". The information will be made available in the Interest Payment Date Investor Report in "&TEXT(P24, "MMMM YYYY")&"" -> *Coupon rate and interest due will not be known until 5 London Business Days prior to the Interest Payment Date on 22/04/25. The information will be made available in the Interest Payment Date Investor Report in April 2025
B29: Closing Date | C29: 2024-05-14 | F29: Series 2024-1 Z VFN Notes
B31: 2024-1 | C31: ISIN (Reg S) | D31: ISIN (144a) | E31: Ratings Moody's/Fitch | F31: Initial Ratings Moody's/Fitch | G31: Currency | H31: Applicable Exchange Rate | I31: Original Balance | J31: Updated Notional Since Issuance | K31: Outstanding | L31: Reference rate | M31: Margin p.a.% | N31: Current interest rate p.a.% | O31: Accrual Period | P31: Next coupon date | Q31: Interest next coupon | R31: Step up Date | S31: Legal Maturity | T31: Bond Type
B33: Z VFN* | C33: N/A | D33: N/A | E33: N/A | F33: N/A | G33: GBP | H33: 1 | I33: 10000000 | J33: =K33-I33 -> 133679000 | K33: =INDEX('[12]Notes - Issuer'!$850:$850,MATCH('Page 1'!E15,'[12]Notes - Issuer'!$9:$9,0)) -> 143679000 | L33: Compunded Daily SONIA | M33: 0 | N33: =INDEX('[12]Notes - Issuer'!$861:$861,MATCH(EOMONTH('Page 1'!E15,0),'[12]Notes - Issuer'!$9:$9,0)) -> 0 | O33: =INDEX('[12]Notes - Issuer'!$866:$866,MATCH('Page 1'!E15,'[12]Notes - Issuer'!$9:$9,0)) -> 21/01/2025 - 22/04/2025 | P33: =INDEX('[12]Notes - Issuer'!$867:$867,MATCH('Page 1'!E15,'[12]Notes - Issuer'!$9:$9,0)) -> 2025-04-22 | Q33: =IF(INDEX('[12]Notes - Issuer'!$863:$863,MATCH(EOMONTH('Page 1'!E15,0),'[12]Notes - Issuer'!$9:$9,0))=0,"*",INDEX('[12]Notes - Issuer'!$863:$863,MATCH(EOMONTH('Page 1'!E15,0),'[12]Notes - Issuer'!$9:$9,0))) -> * | R33: N/A | S33: 2072-10-18 | T33: P-Through
B35: ="*Coupon rate and interest due will not be known until 5 London Business Days prior to the Interest Payment Date on "&TEXT(P33,"DD/MM/YY")&". The information will be made available in the Interest Payment Date Investor Report in "&TEXT(P33, "MMMM YYYY")&"" -> *Coupon rate and interest due will not be known until 5 London Business Days prior to the Interest Payment Date on 22/04/25. The information will be made available in the Interest Payment Date Investor Report in April 2025

Sheet Page 7
B2: Combined Credit Enhancement | C2: Total | D2: % of Total | E2: Current note | F2: Subordination | G2: % Required
C3: £ | E3: subordination | F3: +Reserve Fund
B5: Class A Notes | C5: ='[12]Notes - Issuer'!$E$877 -> 1250000000 | D5: =C5/$C$10 -> 0.8969066765 | E5: =SUM(D6:D9) -> 0.1030933235 | F5: =(C9+C13)/C10 -> 0.1300005238 | G5: 0.13
B6: Class B Notes | C6: ='[12]Notes - Issuer'!$E$878 -> 0 | D6: =C6/$C$10 -> 0 | E6: 0 | F6: 0 | G6: 0
B7: Class M Notes | C7: ='[12]Notes - Issuer'!$E$880 -> 0 | D7: =C7/$C$10 -> 0 | E7: 0 | F7: 0 | G7: 0
B8: Class C Notes | C8: ='[12]Notes - Issuer'!$E$880 -> 0 | D8: =C8/$C$10 -> 0 | E8: 0 | F8: 0 | G8: 0
B9: Class Z Notes | C9: ='[12]Notes - Issuer'!$E$881 -> 143679000 | D9: =C9/$C$10 -> 0.1030933235 | E9: 0 | F9: 0 | G9: 0
C10: =SUM(C5:C9) -> 1393679000 | D10: =SUM(D5:D9) -> 1
B13: General Reserve Fund Required Amount | C13: =INDEX('[12]Interco - Funding'!$30:$30,MATCH('Page 1'!E15,'[12]Interco - Funding'!$9:$9,0)) -> 37500000 | D13: =C13/C5 -> 0.03
B17: Interest shortfall in period | C17: 0
B18: Cumulative interest shortfall | C18: 0
B19: Principal shortfall in period | C19: 0
B20: Cumulative principal shortfall | C20: 0
B21: Cumulative net loss | C21: 0
B22: Excess principal paid in current period | C22: 0
B25: General Reserve Fund
B27: Balance brought forward | C27: =INDEX('[12]Interco - Funding'!$30:$30,MATCH(EOMONTH('Page 1'!E15,-1),'[12]Interco - Funding'!$9:$9,0)) -> 37500000
B28: Drawings | C28: ='[12]Waterfall - Funding'!$F$32 -> 0
B29: Top up | C29: 0
B30: Balance carried forward | C30: =INDEX('[12]Interco - Funding'!$30:$30,MATCH('Page 1'!E15,'[12]Interco - Funding'!$9:$9,0)) -> 37500000
B33: Quarterly Excess Spread* | C33: Excluding Z notes | D33: Including Z Notes
B35: Quarterly Excess Spread annualised | C35: =INDEX('[12]Waterfall - Funding'!$216:$216,MATCH(EOMONTH('Page 1'!E15,0),'[12]Waterfall - Funding'!$15:$15,0)) -> 0.01108341067 | D35: =INDEX('[12]Waterfall - Funding'!$215:$215,MATCH(EOMONTH('Page 1'!E15,0),'[12]Waterfall - Funding'!$15:$15,0)) -> 0.01592293627
B36: *Excess spread is calculated at each quarterly Interest Payment Date - see note 13
B38: Funding 1 Principal Ledger-AAA | C38: ='[12]Waterfall - Funding'!$F$179 -> 0
B39: Funding 1 Principal Ledger-AA | C39: 0
B40: Funding 1 Principal Ledger-A | C40: 0
B41: Funding 1 Principal Ledger-BBB | C41: 0
B42: Total Funding 1 Principal Ledger | C42: =SUM(C38:C41) -> 0
B45: ="Accounts as at "&" "&TEXT(EOMONTH('Page 1'!E15,-1),"dd mmmm yyyy") -> Accounts as at 28 February 2025 | C45: Counterparty | E45: Rate | F45: Amount
B47: Mortgages Trustee GIC | C47: Santander UK | E47: BoE - 0.10% | F47: ='[12]Waterfall - Trustees'!$E$231 -> 42974180.2
B48: Funding GIC | C48: Santander UK | E48: BoE - 0.10% | F48: ='[12]Waterfall - Trustees'!$E$232 -> 41637627.48
B49: Funding Transaction Account | C49: Santander UK | E49: BoE - 0.25% | F49: =INDEX('[12]Waterfall - Funding'!$207:$207,MATCH(EOMONTH('Page 1'!E15,0),'[12]Waterfall - Funding'!$15:$15,0)) -> 1617968
B50: Panel Banks | C50: Bank of New York Mellon | E50: - | F50: 0

Sheet Page 8
B2: WATERFALLS
B4: MORTGAGES TRUSTEE REVENUE WATERFALL | E4: FUNDING 1 REVENUE WATERFALL | H4: ISSUER REVENUE WATERFALL
B5: ="* for collection period "&TEXT(EOMONTH('Page 1'!E15,0)+1,"DD MMMM YYYY")&" to "&TEXT(EOMONTH('Page 1'!E15,0),"DD MMMM YYYY") -> * for collection period 01 April 2025 to 31 March 2025
B6: Mortgages Trustee Fees | C6: ='[12]Waterfall - Trustees'!$E$257 -> 83.33 | E6: Funding 1 Security Trustee fees | F6: =INDEX('[12]Waterfall - Funding'!$49:$49,MATCH(EOMONTH('Page 1'!E15,0),'[12]Waterfall - Funding'!$15:$15,0)) -> 0 | H6: Issuer Security Trustee fees | I6: =INDEX('[12]Waterfall - Issuer'!$239:$239,,MATCH('Page 1'!E15,'[12]Waterfall - Issuer'!$17:$17,0)) -> 0
B7: Other third party payments | C7: ='[12]Waterfall - Trustees'!$E$258+'[12]Waterfall - Trustees'!$E$259 -> 0 | E7: Fee under Intercompany Loan | F7: =INDEX('[12]Waterfall - Funding'!$51:$51,MATCH(EOMONTH('Page 1'!E15,0),'[12]Waterfall - Funding'!$15:$15,0)) -> 0 | H7: Note Trustee fees | I7: 0
E8: Other third party payments | F8: =INDEX('[12]Waterfall - Funding'!$59:$59,MATCH(EOMONTH('Page 1'!E15,0),'[12]Waterfall - Funding'!$15:$15,0)) -> 0 | H8: Agent Bank fees etc. | I8: 0
E9: Profit to Funding 1 | F9: =INDEX('[12]Waterfall - Funding'!$60:$60,MATCH(EOMONTH('Page 1'!E15,0),'[12]Waterfall - Funding'!$15:$15,0)) -> 0 | H9: Issuer profit | I9: =INDEX('[12]Waterfall - Issuer'!$262:$262,MATCH('Page 1'!E15,'[12]Waterfall - Issuer'!$17:$17,0)) -> 0
B10: Servicer Fees | C10: ='[12]Waterfall - Trustees'!$E$261 -> 85529.89
B11: Cash Manager Fees | C11: ='[12]Waterfall - Trustees'!$E$262 -> 0 | E11: Cash Manager fees | F11: =INDEX('[12]Waterfall - Funding'!$54:$54,MATCH(EOMONTH('Page 1'!E15,0),'[12]Waterfall - Funding'!$15:$15,0)) -> 0 | H11: Other third party payments | I11: =INDEX('[12]Waterfall - Issuer'!$240:$240,MATCH('Page 1'!E15,'[12]Waterfall - Issuer'!$17:$17,0)) -> 0
B12: Mortgages Trustee Corporate Service Provider fees | C12: ='[12]Waterfall - Trustees'!$E$263 -> 166.67 | E12: Funding 1 Corporate Service Provider fees | F12: =INDEX('[12]Waterfall - Funding'!$65:$65,MATCH(EOMONTH('Page 1'!E15,0),'[12]Waterfall - Funding'!$15:$15,0)) -> 0
B13: Funding 1 Account Banks fees | C13: ='[12]Waterfall - Trustees'!$E$264 -> 0 | E13: Funding 1 Account Banks fees | F13: 0
H14: Issuer Cash Manager Fees | I14: =INDEX('[12]Waterfall - Issuer'!$242:$242,,MATCH('Page 1'!E15,'[12]Waterfall - Issuer'!$17:$17,0)) -> 0
E15: Payment to Funding 1 Swap Provider | F15: =INDEX('[12]Waterfall - Funding'!$71:$71,MATCH(EOMONTH('Page 1'!E15,0),'[12]Waterfall - Funding'!$15:$15,0)) -> 0 | H15: Issuer Corporate Service Provider Fees | I15: =INDEX('[12]Waterfall - Issuer'!$244:$244,,MATCH('Page 1'!E15,'[12]Waterfall - Issuer'!$17:$17,0)) -> 0
B16: Funding 1 | C16: ='[12]Waterfall - Trustees'!$E$277 -> 3224580.27 | H16: Issuer Account Bank Fees | I16: =INDEX('[12]Waterfall - Issuer'!$243:$243,,MATCH('Page 1'!E15,'[12]Waterfall - Issuer'!$17:$17,0)) -> 0
B17: Seller | C17: ='[12]Waterfall - Trustees'!$E$282 -> 2191819.14 | H17: Other issuer invoices | I17: =INDEX('[12]Waterfall - Issuer'!$245:$245,,MATCH('Page 1'!E15,'[12]Waterfall - Issuer'!$17:$17,0)) -> 0
E18: Interest on AAA Loan Tranches | F18: =INDEX('[12]Waterfall - Funding'!$73:$73,MATCH(EOMONTH('Page 1'!E15,0),'[12]Waterfall - Funding'!$15:$15,0)) -> 0
E19: Credit to AAA Principal Deficiency Ledger | F19: =INDEX('[12]Waterfall - Funding'!$76:$76,MATCH(EOMONTH('Page 1'!E15,0),'[12]Waterfall - Funding'!$15:$15,0)) -> 0 | H19: Interest on Class A Notes | I19: =INDEX('[12]Waterfall - Issuer'!$246:$246,,MATCH('Page 1'!E15,'[12]Waterfall - Issuer'!$17:$17,0)) -> 0
B20: MORTGAGES TRUSTEE PRINCIPAL WATERFALL | H20: (including amounts paid to Issuer Swap Providers) | I20: =INDEX('[12]Waterfall - Issuer'!$247:$247,,MATCH('Page 1'!E15,'[12]Waterfall - Issuer'!$17:$17,0)) -> 0
B21: ="* for collection period "&TEXT(EOMONTH('Page 1'!E15,0)+1,"DD MMMM YYYY")&" to "&TEXT(EOMONTH('Page 1'!E15,0),"DD MMMM YYYY") -> * for collection period 01 April 2025 to 31 March 2025 | E21: Interest on AA Loan Tranches | F21: =INDEX('[12]Waterfall - Funding'!$78:$78,MATCH(EOMONTH('Page 1'!E15,0),'[12]Waterfall - Funding'!$15:$15,0)) -> 0 | H21: Interest on Class B Notes | I21: 0
B22: Funding 1 | C22: ='[12]Waterfall - Trustees'!$E$316+'[12]Waterfall - Trustees'!$E$318+'[12]Waterfall - Trustees'!$E$320 -> 0 | E22: Credit to AA Principal Deficiency Ledger | F22: =INDEX('[12]Waterfall - Funding'!$78:$78,MATCH(EOMONTH('Page 1'!E15,0),'[12]Waterfall - Funding'!$15:$15,0)) -> 0 | H22: (including amounts paid to Issuer Swap Providers) | I22: 0
H23: Interest on Class M Notes | I23: 0
E24: Interest on A Loan Tranches | F24: =INDEX('[12]Waterfall - Funding'!$84:$84,MATCH(EOMONTH('Page 1'!E15,0),'[12]Waterfall - Funding'!$15:$15,0)) -> 0 | H24: (including amounts paid to Issuer Swap Providers) | I24: 0
B25: Seller | C25: ='[12]Waterfall - Trustees'!$E$330 -> 36684479.2 | E25: Credit to A Principal Deficiency Ledger | F25: =INDEX('[12]Waterfall - Funding'!$86:$86,MATCH(EOMONTH('Page 1'!E15,0),'[12]Waterfall - Funding'!$15:$15,0)) -> 0 | H25: Interest on Class C Notes | I25: 0
H26: (including amounts paid to Issuer Swap Providers) | I26: 0
E27: Interest on BBB Loan Tranches | F27: =INDEX('[12]Waterfall - Funding'!$90:$90,MATCH(EOMONTH('Page 1'!E15,0),'[12]Waterfall - Funding'!$15:$15,0)) -> 0
B28: Refinancing Contribution from Seller | C28: ='[12]Waterfall - Trustees'!$E$325 -> 0 | E28: Credit to BBB Principal Deficiency Ledger | F28: =INDEX('[12]Waterfall - Funding'!$92:$92,MATCH(EOMONTH('Page 1'!E15,0),'[12]Waterfall - Funding'!$15:$15,0)) -> 0
H29: Interest on Class Z Notes | I29: =INDEX('[12]Waterfall - Issuer'!$258:$258,,MATCH('Page 1'!E15,'[12]Waterfall - Issuer'!$17:$17,0)) -> 0
E31: Credit to General Reserve Fund | F31: =INDEX('[12]Waterfall - Funding'!$98:$98,MATCH(EOMONTH('Page 1'!E15,0),'[12]Waterfall - Funding'!$15:$15,0)) -> 0
H32: Excluded Issuer swap payments | I32: 0
E34: Credit to NR Principal Deficiency Ledger | F34: =INDEX('[12]Waterfall - Funding'!$100:$100,MATCH(EOMONTH('Page 1'!E15,0),'[12]Waterfall - Funding'!$15:$15,0)) -> 0
H35: Surplus to Funding 1 pursuant to the Intercompany loan agreement | I35: =INDEX('[12]Waterfall - Issuer'!$263:$263,,MATCH('Page 1'!E15,'[12]Waterfall - Issuer'!$17:$17,0)) -> 0
E37: Interest on NR Loan Tranches | F37: =INDEX('[12]Waterfall - Funding'!$104:$104,MATCH(EOMONTH('Page 1'!E15,0),'[12]Waterfall - Funding'!$15:$15,0)) -> 0
H38: ISSUER PRINCIPAL WATERFALL
E40: Excluded swap payments and other fees under the Intercompany Loan Agreement | F40: =INDEX('[12]Waterfall - Funding'!$108:$108,MATCH(EOMONTH('Page 1'!E15,0),'[12]Waterfall - Funding'!$15:$15,0)) -> 0 | H40: Repayment of Class A Notes | I40: =INDEX('[12]Waterfall - Issuer'!$381:$381,MATCH(EOMONTH('Page 1'!E15,0),'[12]Waterfall - Issuer'!$15:$15,0)) -> 0
F41: =INDEX('[12]Waterfall - Funding'!$110:$110,MATCH(EOMONTH('Page 1'!E15,0),'[12]Waterfall - Funding'!$15:$15,0)) -> 0 | H41: (including principal payments to class A swap providers) | I41: =INDEX('[12]Waterfall - Issuer'!$382:$382,MATCH(EOMONTH('Page 1'!E15,0),'[12]Waterfall - Issuer'!$15:$15,0)) -> 0
H42: Repayment of Class B Notes | I42: =INDEX('[12]Waterfall - Issuer'!$384:$384,MATCH(EOMONTH('Page 1'!E15,0),'[12]Waterfall - Issuer'!$15:$15,0)) -> 0
H43: (including principal payments to class B swap providers) | I43: =INDEX('[12]Waterfall - Issuer'!$385:$385,MATCH(EOMONTH('Page 1'!E15,0),'[12]Waterfall - Issuer'!$15:$15,0)) -> 0
H44: Repayment of Class M Notes | I44: 0
E45: Payment of Funding 1 Start-up Loan | F45: =INDEX('[12]Waterfall - Funding'!$118:$118,MATCH(EOMONTH('Page 1'!E15,0),'[12]Waterfall - Funding'!$15:$15,0)) -> 0 | H45: (including principal payments to class M swap providers) | I45: 0
H46: Repayment of Class C Notes | I46: 0
H47: (including principal payments to class C swap providers) | I47: 0
E48: Deferred Consideration | F48: =INDEX('[12]Waterfall - Funding'!$120:$120,MATCH(EOMONTH('Page 1'!E15,0),'[12]Waterfall - Funding'!$15:$15,0)) -> 0
H50: Repayment of Class Z Notes | I50: =INDEX('[12]Waterfall - Issuer'!$396:$396,MATCH(EOMONTH('Page 1'!E15,0),'[12]Waterfall - Issuer'!$15:$15,0)) -> 0
E51: FUNDING 1 PRINCIPAL WATERFALL
E53: Repayment of Class A Notes | F53: =INDEX('[12]Waterfall - Funding'!$195:$195,MATCH(EOMONTH('Page 1'!E15,0),'[12]Waterfall - Funding'!$15:$15,0)) -> 0
E54: Repayment of Class B Notes | F54: =INDEX('[12]Waterfall - Funding'!$196:$196,MATCH(EOMONTH('Page 1'!E15,0),'[12]Waterfall - Funding'!$15:$15,0)) -> 0
E55: Repayment of Class M Notes | F55: =INDEX('[12]Waterfall - Funding'!$197:$197,MATCH(EOMONTH('Page 1'!E15,0),'[12]Waterfall - Funding'!$15:$15,0)) -> 0
E56: Repayment of Class C Notes | F56: =INDEX('[12]Waterfall - Funding'!$199:$199,MATCH(EOMONTH('Page 1'!E15,0),'[12]Waterfall - Funding'!$15:$15,0)) -> 0
E59: Repayment of NR loan tranches | F59: =INDEX('[12]Waterfall - Funding'!$200:$200,MATCH(EOMONTH('Page 1'!E15,0),'[12]Waterfall - Funding'!$15:$15,0)) -> 0
E62: Credit to Cash Accumulation Ledger | F62: 0

Sheet Page 9
B2: SWAP PAYMENTS THIS PERIOD
B4: Note | C4: Swap Provider | D4: Currency Notional | E4: Receive Reference Rate | F4: Receive margin | G4: Receive Rate | H4: Interest Received | I4: Principal Received | J4: £ Notional | K4: Pay reference rate | L4: Pay margin | M4: Pay rate | N4: Interest Paid | O4: Principal Paid
B5: Funding 1 Swap SONIA | C5: SAN UK | D5: =INDEX('[12]Waterfall - Funding'!$259:$259, MATCH(EOMONTH('Page 1'!E15,0),'[12]Waterfall - Funding'!$15:$15,0)) -> 0 | E5: Compounded Daily SONIA | F5: =INDEX('[12]Waterfall - Funding'!$260:$260,MATCH(EOMONTH('Page 1'!E15,0),'[12]Waterfall - Funding'!$15:$15,0)) -> 0 | G5: =INDEX('[12]Waterfall - Funding'!$261:$261, MATCH(EOMONTH('Page 1'!E15,0),'[12]Waterfall - Funding'!$15:$15,0)) -> 0 | H5: =INDEX('[12]Waterfall - Funding'!$262:$262, MATCH(EOMONTH('Page 1'!E15,0),'[12]Waterfall - Funding'!$15:$15,0)) -> 0 | I5: 0 | J5: =INDEX('[12]Waterfall - Funding'!$264:$264, MATCH(EOMONTH('Page 1'!E15,0),'[12]Waterfall - Funding'!$15:$15,0)) -> 0 | K5: N/A | L5: 0 | M5: =+INDEX('[12]Waterfall - Funding'!$267:$267, MATCH(EOMONTH('Page 1'!E15,0),'[12]Waterfall - Funding'!$15:$15,0)) -> 0 | N5: =+INDEX('[12]Waterfall - Funding'!$268:$268, MATCH(EOMONTH('Page 1'!E15,0),'[12]Waterfall - Funding'!$15:$15,0)) -> 0 | O5: 0
B9: Note | C9: Collateral Postings | D9: Counterparty

Sheet Page 10
B3: TRIGGER EVENTS
B4: Asset
B5: Amount debited to AAA Principal Deficiency Sub Ledger, unless certain criteria are met | C5: None
B7: Non Asset
B8: Insolvency Event occurs in relation to Seller | C8: None
B9: Sellers role as Servicer terminated & new Servicer is not appointed within 60 days | C9: None
B10: The then current Seller Share is less than the adjusted Minimum Seller Share for 2 consecutive Trust Calculation Dates | C10: None
B11: The aggregate outstanding principal balance of Loans in the Mortgages Trust is less than the required loan balance amount specified in the most recent
B12: final terms | C12: None
B13: An arrears trigger event will occur if:
B14: (i) the outstanding principal balance of the loans in arrears for more than 3 times the monthly payment then due divided by the outstanding principal
B15: balance of all of the loans in the mortgages trust (expressed as a percentage) exceeds 2 per cent. or (ii) the issuer fails to exercise its option to redeem
B16: any of its notes on the relevant step-up date as specified in the relevant final terms.
B18: Full details of all trigger events can be found within the Fosse Master Issuer plc base prospectus
B21: Notes
A22: 1 | B22: Current value of mortgages
B23: Total principal amount outstanding
A24: 2 | B24: Arrears
B25: This arrears multiplier is calculated as the arrears amount ( which is the difference between the expected monthly repayments and the amount that has actually been paid, i.e. a total of under and/or over payments ) divided by the monthly amount repayable. It is recalculated every time the arrears amount changes, i.e. on the date when a payment is due.
A27: 3 | B27: Defaults
B28: For the purpose of the Bank of England Market Notice dated 30 November 2010 "defaults" is defined as properties been taken into possession.
A29: 4 | B29: 1 month CPR
B30: On any trust calculation date, the total principal receipts received during the immediately preceding trust calculation period divided by the aggregate current balance of the loans comprised in the trust property calculated on the previous trust calculation date in respect of the previous trust calculation period.
A31: 5 | B31: 1 month annualised CPR
B32: Calculated as 1 – ((1 – R) ^ 12) where R is (i) total principal receipts received scheduled and unscheduled during the relevant period, divided by (ii) the aggregate outstanding principal balance of the loans in the expected portfolio as at the start of that period.
A33: 6 | B33: 3 month average CPR
B34: The total principal receipts received during the immediately preceding trust calculation period for the last 3 months divided by the average aggregate current balance of the last 3 months of the loans comprised in the trust property.
A35: 7 | B35: 3 month annualised CPR
B36: Calculated as 1 – ((1 – R) ^ 4) where R is (i) total principal receipts received scheduled and unscheduled during the relevant period, divided by (ii) the average aggregate outstanding principal balance over the last 3 months of the loans in the expected portfolio as at the start of that period.
A37: 8 | B37: 12 month average CPR
B38: The total principal receipts received during the immediately preceding trust calculation period for the last 12 months divided by the average aggregate current balance of the last 12 months of the loans comprised in the trust property.
A39: 9 | B39: X
B40: 104.4%. of the aggregate of the FSCS excess amounts.
A41: 10 | B41: Y
B42: Flexible draw capacity (flexible drawdown reservoir of live sub-accounts) multiplied by 8% multiplied by 3%
A43: 11 | B43: Z
B44: Balance of flexible redraws and Further Advances covered by CCA
A45: 13 | B45: Excess spread calculation
B46: After a review of the calculation and reporting, Excess Spread has been updated to include 4 reporting components: 1. Quarterly including Z Notes 2. Quarterly excluding Z Notes 3. Monthly including Z Notes 4. Monthly excluding Z Notes In all cases Excess Spread is calculated by dividing excess cash available (pre and post Z Note payment) divided by a. Quarterly = the weighted average Funding Share for the relevant period and b. Monthly = the current Funding Share for the relevant period
B47: All capitalised terms used in this investor report have the meaning or descriptions assigned to them in the Fosse Master Issuer plc base prospectus
B48: Calculated as 1 – ((1 – R) ^ 12) where R is (i) total principal receipts received scheduled and unscheduled during the relevant period, divided by (ii) the aggregate outstanding principal balance of the loans in the expected portfolio as at the start of that period.
A50: 16 | B50: 3 month average CPR
B51: The total principal receipts received during the immediately preceding trust calculation period for the last 3 months divided by the average aggregate current balance of the last 3 months of the loans comprised in the trust property
A52: 17 | B52: 3 month annualised CPR
B53: Calculated as 1 – ((1 – R) ^ 4) where R is (i) total principal receipts received scheduled and unscheduled during the relevant period, divided by (ii) the average aggregate outstanding principal balance over the last 3 months of the loans in the expected portfolio as at the start of that period.
A54: 18 | B54: 12 month average CPR
B55: The total principal receipts received during the immediately preceding trust calculation period for the last 12 months divided by the average aggregate current balance of the last 12 months of the loans comprised in the trust property
A57: Notes | B57: Risk Retention
B58: Santander UK, in its capacity as originator, will (i) retain, on an on-going basis, a material net economic interest of not less than 5 per cent. in the nominal value of the securitised exposures in accordance with Article 6 of Chapter 2 and Chapter 4 of the PRA Securitisation Rules and SECN 5 , and Article 6(3)(b) of the EU Securitisation Regulation, as applicable and (ii) agree not to hedge, sell or otherwise mitigate such risk. Any change to the manner in which such interest is held will be notified to noteholders in accordance with the conditions and the requirements of the UK securitisation framework and the EU Securitisation Regulation, as applicable. All capitalised terms used in this investor report have the meaning or descriptions assigned to them in the base prospectus of Fosse Master Issuer plc available at https://www.santander.co.uk/about-santander/investor-relations/fosse-master-trust.
B63: All capitalised terms used in this investor report have the meaning or descriptions assigned to them in the Fosse Master Issuer plc base prospectus
